[Event "Ceske Budejovice Open-A 2019"]
[Site "Ceske Budejovice"]
[Date "2019.07.04"]
[Round "6.24"]
[White "Petkov, Andon"]
[Black "Hlavsa, Filip"]
[Result "1/2-1/2"]
[ECO "B07"]
[WhiteElo "1761"]
[BlackElo "1843"]
[Annotator "NA"]
[PlyCount "168"]
[EventDate "2019.07.02"]
[EventCountry "CZE"]
[SourceTitle "playchess.com"]
[Source "ChessBase"]
[SourceQuality "1"]
[TimeControl "5400+30"]

1. Nc3 {[%emt 0:00:00]} Nf6 {[%emt 0:02:06]} 2. e4 {[%emt 0:00:00]} d6 {[%emt 0:00:28]} 3. d4 {[%emt 0:00:49]} g6 {[%emt 0:03:00]} 4. Bg5 {[%emt 0:00:18]} Nbd7 {[%emt 0:01:31]} 5. Nf3 {[%emt 0:04:46]} c6 {[%emt 0:10:32]} 6. Be2 {[%emt 0:05:15]} Bg7 {[%emt 0:03:33]} 7. Qd2 {[%emt 0:00:51]} h6 {[%emt 0:00:58]} 8. Bf4 {[%emt 0:01:14]} c5 {[%emt 0:07:49]} 9. e5 {[%emt 0:21:27]} cxd4 {[%emt 0:05:05]} 10. Nb5 {[%emt 0:00:08]} dxe5 {[%emt 0:07:16]} 11. Nxe5 {[%emt 0:00:27]} g5 {[%emt 0:13:45]} 12. Nxd7 {[%emt 0:10:01]} gxf4 {[%emt 0:03:22]} 13. Nxf6+ {[%emt 0:05:46]} Bxf6 {[%emt 0:00:06]} 14. Qxf4 {[%emt 0:00:43]} e5 {[%emt 0:00:55]} 15. Qe4 {[%emt 0:03:54]} Qb6 {[%emt 0:06:11]} 16. O-O-O {[%emt 0:03:39]} Kf8 {[%emt 0:01:45]} 17. f4 {[%emt 0:05:14]} Bd7 {[%emt 0:02:49]} 18. Na3 {[%emt 0:09:02]} Qc6 {[%emt 0:01:20]} 19. Qxc6 {[%emt 0:01:51]} Bxc6 {[%emt 0:00:26]} 20. fxe5 {[%emt 0:00:50]} Bg5+ {[%emt 0:04:44]} 21. Kb1 {[%emt 0:00:22]} Bxg2 {[%emt 0:00:08]} 22. Rhg1 {[%emt 0:01:10]} Bc6 {[%emt 0:02:12]} 23. Rgf1 {[%emt 0:01:03]} Rd8 {[%emt 0:02:42]} 24. Bh5 {[%emt 0:00:57]} Rh7 {[%emt 0:00:42]} 25. Rde1 {[%emt 0:05:33]} b5 {[%emt 0:03:58]} 26. e6 {[%emt 0:02:08]} f6 {[%emt 0:00:24]} 27. Bf7 {[%emt 0:00:30]} Ke7 {[%emt 0:01:00]} 28. Rf5 {[%emt 0:01:19]} a6 {[%emt 0:01:38]} 29. Rc5 {[%emt 0:01:14]} Rd6 {[%emt 0:02:36]} 30. Ka1 {[%emt 0:01:42]} h5 {[%emt 0:06:34]} 31. Rd1 {[%emt 0:01:26]} h4 {[%emt 0:01:32]} 32. c4 {[%emt 0:00:34]} dxc3 {[%emt 0:02:09]} 33. Rxd6 {[%emt 0:00:29]} Kxd6 {[%emt 0:00:04]} 34. Rxc6+ {[%emt 0:02:02]} Kxc6 {[%emt 0:00:38]} 35. e7 {[%emt 0:00:22]} Rh8 {[%emt 0:01:20]} 36. e8=Q+ Rxe8 {[%emt 0:00:10]} 37. Bxe8+ {[%emt 0:00:32]} Kd5 {[%emt 0:00:32]} 38. bxc3 {[%emt 0:00:28]} Ke4 {[%emt 0:00:54]} 39. Kb2 {[%emt 0:02:29]} f5 {[%emt 0:00:59]} 40. Bg6 {[%emt 0:00:21]} h3 {[%emt 0:00:24]} 41. Nc2 {[%emt 0:05:07]} Bf6 {[%emt 0:00:00]} 42. Nd4 {[%emt 0:00:00]} b4 {[%emt 0:00:00]} 43. Bxf5+ {[%emt 0:00:00]} Ke3 {[%emt 0:00:00]} 44. Nc2+ {[%emt 0:00:00]} Kd2 {[%emt 0:00:00]} 45. Nxb4 {[%emt 0:00:00]} Bxc3+ {[%emt 0:00:00]} 46. Kb3 {[%emt 0:00:00]} Be5 {[%emt 0:00:00]} 47. Nxa6 {[%emt 0:00:00]} Bxh2 {[%emt 0:00:00]} 48. Bxh3 {[%emt 0:00:00]} Kd3 {[%emt 0:00:00]} 49. Kb4 {[%emt 0:00:00]} Kd4 {[%emt 0:00:00]} 50. Kb5 {[%emt 0:00:00]} Kd5 {[%emt 0:00:00]} 51. Kb6 {[%emt 0:00:00]} Bg3 {[%emt 0:02:31]} 52. a4 {[%emt 0:00:00]} Kc4 {[%emt 0:02:28]} 53. Bd7 {[%emt 0:00:00]} Bf2+ {[%emt 0:00:36]} 54. Kb7 {[%emt 0:00:00]} Be1 {[%emt 0:00:22]} 55. Bb5+ {[%emt 0:00:00]} Kb3 {[%emt 0:00:23]} 56. Kb6 {[%emt 0:00:00]} Bf2+ {[%emt 0:01:13]} 57. Kc6 {[%emt 0:00:00]} Be1 {[%emt 0:00:11]} 58. Kd5 {[%emt 0:00:00]} Ba5 {[%emt 0:01:21]} 59. Bd7 {[%emt 0:00:00]} Be1 {[%emt 0:00:32]} 60. Kc5 {[%emt 0:00:00]} Ba5 {[%emt 0:00:20]} 61. Kb5 {[%emt 0:00:00]} Be1 {[%emt 0:00:24]} 62. Be6+ {[%emt 0:00:00]} Ka3 {[%emt 0:00:26]} 63. Nc5 {[%emt 0:00:00]} Bb4 {[%emt 0:01:01]} 64. Bd7 {[%emt 0:00:00]} Be1 {[%emt 0:00:36]} 65. Ne4 {[%emt 0:00:14]} Bb4 {[%emt 0:00:32]} 66. Kc4 {[%emt 0:01:12]} Ba5 {[%emt 0:00:27]} 67. Nd6 {[%emt 0:00:03]} Be1 {[%emt 0:00:33]} 68. Nb5+ {[%emt 0:00:07]} Kb2 {[%emt 0:00:08]} 69. Nd4 {[%emt 0:02:12]} Bd2 {[%emt 0:01:10]} 70. Nb3 {[%emt 0:02:39]} Be1 {[%emt 0:00:14]} 71. a5 {[%emt 0:00:20]} Bxa5 {[%emt 0:00:14]} 72. Nxa5 {[%emt 0:00:07]} Kc2 {[%emt 0:00:54]} 73. Bb5 {[%emt 0:00:27]} Kb2 {[%emt 0:00:24]} 74. Ba4 {[%emt 0:01:22]} Ka3 {[%emt 0:00:19]} 75. Kb5 {[%emt 0:00:10]} Kb2 {[%emt 0:00:18]} 76. Kb4 {[%emt 0:00:18]} Ka2 {[%emt 0:00:18]} 77. Bb3+ {[%emt 0:00:30]} Kb2 {[%emt 0:00:14]} 78. Nc4+ {[%emt 0:00:48]} Kc1 {[%emt 0:00:17]} 79. Kc3 {[%emt 0:00:53]} Kb1 {[%emt 0:00:12]} 80. Na3+ {[%emt 0:01:02]} Ka1 {[%emt 0:00:19]} 81. Nc2+ Kb1 82. Bc4 Kc1 83. Ba2 Kd1 84. Nd4 Kc1 1/2-1/2

[Event "Ceske Budejovice Open-A 2019"]
[Site "Ceske Budejovice"]
[Date "2019.07.04"]
[Round "6.25"]
[White "Gumerov, Ruslan"]
[Black "Kovar, Petr"]
[Result "1/2-1/2"]
[ECO "B00"]
[WhiteElo "1843"]
[BlackElo "1937"]
[Annotator "NA"]
[PlyCount "88"]
[EventDate "2019.07.02"]
[EventCountry "CZE"]
[SourceTitle "playchess.com"]
[Source "ChessBase"]
[SourceQuality "1"]
[TimeControl "5400+30"]

1. e4 {[%emt 0:00:00]} d6 {[%emt 0:00:00]} 2. d4 {[%emt 0:00:00]} Nf6 {[%emt 0:00:00]} 3. Bd3 {[%emt 0:00:17]} Nbd7 {[%emt 0:00:29]} 4. Nf3 {[%emt 0:00:29]} e5 {[%emt 0:00:12]} 5. c3 {[%emt 0:00:59]} c6 {[%emt 0:02:17]} 6. O-O {[%emt 0:00:33]} h6 {[%emt 0:00:28]} 7. h3 {[%emt 0:08:34]} Be7 {[%emt 0:03:13]} 8. Be3 {[%emt 0:00:24]} Qc7 {[%emt 0:00:29]} 9. Nbd2 {[%emt 0:00:36]} g5 {[%emt 0:03:18]} 10. Ne1 {[%emt 0:04:29]} Nf8 {[%emt 0:01:35]} 11. b4 {[%emt 0:01:51]} Ng6 {[%emt 0:00:14]} 12. Be2 {[%emt 0:04:23]} Nf4 {[%emt 0:00:36]} 13. Nd3 {[%emt 0:03:14]} Rg8 {[%emt 0:07:24]} 14. Rc1 {[%emt 0:09:52]} Nh7 {[%emt 0:04:57]} 15. Nc4 {[%emt 0:04:38]} f6 {[%emt 0:01:25]} 16. Bh5+ {[%emt 0:02:48]} Kf8 {[%emt 0:00:18]} 17. a4 {[%emt 0:14:46]} Be6 {[%emt 0:03:09]} 18. Na3 Rd8 {[%emt 0:05:53]} 19. c4 {[%emt 0:03:20]} f5 {[%emt 0:00:21]} 20. Bxf4 {[%emt 0:09:52]} gxf4 {[%emt 0:01:47]} 21. Qe2 {[%emt 0:02:11]} fxe4 {[%emt 0:12:03]} 22. Qxe4 {[%emt 0:00:52]} Ng5 {[%emt 0:04:28]} 23. Qe2 {[%emt 0:00:53]} Bf6 {[%emt 0:02:56]} 24. Kh2 {[%emt 0:04:31]} f3 {[%emt 0:07:41]} 25. Bxf3 {[%emt 0:01:27]} e4 26. Nf4 d5 {[%emt 0:05:48]} 27. g3 {[%emt 0:01:04]} Bxh3 {[%emt 0:07:02]} 28. Bg2 {[%emt 0:06:09]} Bxg2 {[%emt 0:05:26]} 29. Kxg2 {[%emt 0:00:55]} Qf7 {[%emt 0:01:28]} 30. cxd5 {[%emt 0:05:59]} cxd5 {[%emt 0:00:26]} 31. Qe3 {[%emt 0:04:23]} a6 {[%emt 0:02:37]} 32. Rfd1 {[%emt 0:00:19]} Kg7 {[%emt 0:01:25]} 33. b5 {[%emt 0:00:37]} Nf3 {[%emt 0:05:41]} 34. bxa6 {[%emt 0:00:55]} bxa6 {[%emt 0:00:31]} 35. Rc6 {[%emt 0:00:16]} Bg5 {[%emt 0:01:00]} 36. Ne6+ {[%emt 0:01:36]} Qxe6 {[%emt 0:06:13]} 37. Rxe6 {[%emt 0:00:05]} Bxe3 {[%emt 0:00:02]} 38. fxe3 {[%emt 0:00:02]} Rb8 {[%emt 0:00:42]} 39. Rc1 {[%emt 0:01:11]} Rb2+ {[%emt 0:00:25]} 40. Kf1 {[%emt 0:00:58]} Rf8 {[%emt 0:00:46]} 41. Rc7+ {[%emt 0:00:17]} Rf7 {[%emt 0:00:19]} 42. Rxf7+ {[%emt 0:00:50]} Kxf7 {[%emt 0:00:01]} 43. Rxa6 {[%emt 0:01:12]} Rd2 {[%emt 0:01:37]} 44. Rxh6 {[%emt 0:00:00]} Rd1+ {Ke1} 1/2-1/2

[Event "Ceske Budejovice Open-A 2019"]
[Site "Ceske Budejovice"]
[Date "2019.07.05"]
[Round "7.2"]
[White "Nagy, Gabor"]
[Black "Velicka, Petr"]
[Result "1/2-1/2"]
[ECO "A06"]
[WhiteElo "2474"]
[BlackElo "2428"]
[Annotator "ChessBase"]
[PlyCount "63"]
[EventDate "2019.07.02"]
[EventCountry "CZE"]
[SourceTitle "playchess.com"]
[Source "ChessBase"]
[SourceQuality "1"]
[TimeControl "5400+30"]

1. Nf3 {[%emt 0:00:23]} d5 {[%emt 0:00:00]} 2. g3 {[%emt 0:00:32]} Nf6 {[%emt 0:00:04]} 3. Bg2 {[%emt 0:00:16]} Bg4 {[%emt 0:00:25]} 4. c4 {[%emt 0:00:15]} c6 {[%emt 0:00:06]} 5. Ne5 {[%emt 0:00:23]} Be6 {[%emt 0:00:07]} 6. cxd5 {[%emt 0:00:09]} Bxd5 {[%emt 0:00:07]} 7. Nf3 {[%emt 0:00:12]} c5 {[%emt 0:01:32]} 8. O-O {[%emt 0:01:55]} e6 {[%emt 0:02:02]} 9. Nc3 {[%emt 0:00:16]} Bc6 {[%emt 0:00:08]} 10. d3 {[%emt 0:00:20]} Be7 {[%emt 0:00:59]} 11. e4 {[%emt 0:00:22]} O-O {[%emt 0:00:58]} 12. Re1 {[%emt 0:01:04]} b6 {[%emt 0:06:59]} 13. d4 {[%emt 0:02:24]} cxd4 {[%emt 0:07:20]} 14. Nxd4 {[%emt 0:00:13]} Bb7 {[%emt 0:00:46]} 15. Bf4 {[%emt 0:05:37]} Nfd7 {[%emt 0:12:39]} 16. Ndb5 {[%emt 0:01:22]} e5 {[%emt 0:00:37]} 17. Be3 {[%emt 0:00:17]} Nc6 {[%emt 0:05:25]} 18. Re2 {[%emt 0:02:30]} Nf6 {[%emt 0:10:10]} 19. Rd2 {[%emt 0:00:16]} Qb8 {[%emt 0:00:20]} 20. Nd5 {[%emt 0:01:58]} Bd8 {[%emt 0:02:09]} 21. Rc1 {[%emt 0:03:43]} a6 {[%emt 0:06:38]} 22. Nbc3 {[%emt 0:00:19]} Nxd5 {[%emt 0:10:16]} 23. Nxd5 {[%emt 0:00:17]} b5 {[%emt 0:05:13]} 24. Nb6 {[%emt 0:04:11]} Bxb6 {[%emt 0:00:16]} 25. Bxb6 {[%emt 0:00:08]} Nd4 {[%emt 0:18:43]} 26. Bc7 {[%emt 0:01:38]} Qa7 {[%emt 0:01:07]} 27. Bxe5 {[%emt 0:00:13]} Ne6 {[%emt 0:00:03]} 28. h4 {[%emt 0:05:18]} Rad8 {[%emt 0:00:59]} 29. Bh3 {[%emt 0:06:15]} Bxe4 {[%emt 0:02:17]} 30. Qe1 {[%emt 0:05:16]} Rxd2 {[%emt 0:03:28]} 31. Qxd2 {[%emt 0:00:03]} Ba8 {[%emt 0:00:10]} 32. Bxe6 {[%emt 0:10:29]} 1/2-1/2

[Event "Ceske Budejovice Open-A 2019"]
[Site "Ceske Budejovice"]
[Date "2019.07.05"]
[Round "7.3"]
[White "Ivanov, Mikhail M"]
[Black "Sergeev, Vladimir"]
[Result "1/2-1/2"]
[ECO "A48"]
[WhiteElo "2359"]
[BlackElo "2415"]
[Annotator "NA"]
[PlyCount "24"]
[EventDate "2019.07.02"]
[EventCountry "CZE"]
[SourceTitle "playchess.com"]
[Source "ChessBase"]
[SourceQuality "1"]
[TimeControl "5400+30"]

1. d4 {[%emt 0:01:49]} Nf6 {[%emt 0:00:49]} 2. Nf3 {[%emt 0:00:45]} g6 {[%emt 0:00:07]} 3. c4 {[%emt 0:00:16]} Bg7 {[%emt 0:00:07]} 4. g3 {[%emt 0:00:04]} c6 {[%emt 0:00:17]} 5. Nc3 {[%emt 0:00:17]} d5 {[%emt 0:00:17]} 6. cxd5 {[%emt 0:00:47]} cxd5 {[%emt 0:00:11]} 7. Bg2 {[%emt 0:02:00]} Nc6 {[%emt 0:00:05]} 8. Ne5 {[%emt 0:00:34]} O-O {[%emt 0:00:15]} 9. f4 {[%emt 0:00:36]} e6 {[%emt 0:00:19]} 10. O-O {[%emt 0:00:33]} Ne7 {[%emt 0:00:13]} 11. e3 {[%emt 0:01:42]} b6 {[%emt 0:00:39]} 12. g4 {[%emt 0:01:55]} Bb7 {[%emt 0:01:05]} 1/2-1/2

[Event "Ceske Budejovice Open-A 2019"]
[Site "Ceske Budejovice"]
[Date "2019.07.05"]
[Round "7.4"]
[White "Nejdl, Eduard"]
[Black "Voloshin, Leonid"]
[Result "0-1"]
[ECO "B30"]
[WhiteElo "1995"]
[BlackElo "2376"]
[Annotator "NA"]
[PlyCount "68"]
[EventDate "2019.07.02"]
[EventCountry "CZE"]
[SourceTitle "playchess.com"]
[Source "ChessBase"]
[SourceQuality "1"]
[TimeControl "5400+30"]

1. e4 {[%emt 0:00:00]} c5 {[%emt 0:01:10]} 2. Nf3 {[%emt 0:01:15]} Nc6 {[%emt 0:00:06]} 3. Bb5 {[%emt 0:00:10]} d6 {[%emt 0:00:54]} 4. h3 {[%emt 0:02:44]} Bd7 {[%emt 0:03:34]} 5. a4 {[%emt 0:03:28]} Nf6 {[%emt 0:03:04]} 6. d3 {[%emt 0:01:57]} g6 {[%emt 0:02:50]} 7. O-O {[%emt 0:01:53]} Bg7 {[%emt 0:00:10]} 8. Re1 {[%emt 0:00:33]} O-O {[%emt 0:00:11]} 9. c3 {[%emt 0:00:22]} a6 {[%emt 0:05:20]} 10. Bc4 {[%emt 0:00:10]} Rc8 {[%emt 0:08:47]} 11. Nbd2 {[%emt 0:01:17]} e5 {[%emt 0:10:35]} 12. Nf1 {[%emt 0:00:59]} Na5 {[%emt 0:10:47]} 13. Ne3 {[%emt 0:01:06]} Nxc4 {[%emt 0:02:44]} 14. Nxc4 {[%emt 0:00:24]} Bc6 {[%emt 0:03:24]} 15. a5 {[%emt 0:01:39]} h6 {[%emt 0:07:13]} 16. Bd2 {[%emt 0:02:05]} Qc7 {[%emt 0:05:30]} 17. b4 {[%emt 0:03:24]} Nd7 {[%emt 0:03:06]} 18. Qe2 {[%emt 0:07:33]} Rce8 {[%emt 0:04:54]} 19. Rac1 {[%emt 0:02:25]} Kh7 {[%emt 0:05:23]} 20. Ne3 {[%emt 0:02:45]} Qd8 {[%emt 0:05:01]} 21. Nh2 {[%emt 0:05:04]} f5 {[%emt 0:02:24]} 22. Nd5 {[%emt 0:01:38]} Bxd5 {[%emt 0:00:53]} 23. exd5 {[%emt 0:00:02]} cxb4 {[%emt 0:00:31]} 24. c4 {[%emt 0:01:02]} Qxa5 {[%emt 0:00:29]} 25. Rb1 {[%emt 0:00:04]} Qc7 {[%emt 0:01:07]} 26. Rxb4 {[%emt 0:00:22]} b6 {[%emt 0:03:00]} 27. Reb1 {[%emt 0:00:47]} Rb8 {[%emt 0:00:24]} 28. Bc3 {[%emt 0:01:05]} b5 {[%emt 0:06:01]} 29. Qa2 {[%emt 0:01:11]} Nc5 {[%emt 0:01:34]} 30. cxb5 {[%emt 0:04:31]} Rxb5 {[%emt 0:00:31]} 31. Rxb5 {[%emt 0:01:03]} axb5 {[%emt 0:00:03]} 32. Rxb5 {[%emt 0:01:36]} Nxd3 {[%emt 0:00:27]} 33. Qb3 {[%emt 0:01:14]} Nc1 {[%emt 0:02:19]} 34. Qb2 {[%emt 0:01:15]} Qxc3 {[%emt 0:00:11]} 0-1

[Event "Ceske Budejovice Open-A 2019"]
[Site "Ceske Budejovice"]
[Date "2019.07.05"]
[Round "7.6"]
[White "Marsalek, Zdenek"]
[Black "Plischki, Sebastian"]
[Result "1/2-1/2"]
[ECO "A36"]
[WhiteElo "2259"]
[BlackElo "2420"]
[Annotator "NA"]
[PlyCount "43"]
[EventDate "2019.07.02"]
[EventCountry "CZE"]
[SourceTitle "playchess.com"]
[Source "ChessBase"]
[SourceQuality "1"]
[TimeControl "5400+30"]

1. c4 {[%emt 0:00:00]} c5 {[%emt 0:00:12]} 2. Nc3 {[%emt 0:00:00]} Nc6 {[%emt 0:00:23]} 3. g3 {[%emt 0:00:42]} g6 {[%emt 0:00:15]} 4. Bg2 {[%emt 0:00:34]} Bg7 {[%emt 0:00:05]} 5. d3 {[%emt 0:01:21]} b6 {[%emt 0:02:15]} 6. e4 {[%emt 0:01:58]} Bb7 {[%emt 0:00:31]} 7. Nge2 {[%emt 0:00:09]} d6 {[%emt 0:03:22]} 8. Be3 {[%emt 0:00:55]} Nf6 {[%emt 0:03:27]} 9. h3 {[%emt 0:00:29]} O-O {[%emt 0:02:19]} 10. O-O {[%emt 0:02:23]} a6 {[%emt 0:03:19]} 11. a3 {[%emt 0:06:40]} Nd7 {[%emt 0:03:43]} 12. Rb1 {[%emt 0:00:37]} Nd4 {[%emt 0:01:09]} 13. b4 {[%emt 0:02:33]} Bc6 {[%emt 0:02:41]} 14. Qd2 {[%emt 0:03:48]} b5 {[%emt 0:04:24]} 15. f4 {[%emt 0:01:53]} Nxe2+ {[%emt 0:04:46]} 16. Nxe2 {[%emt 0:00:14]} bxc4 {[%emt 0:00:40]} 17. dxc4 {[%emt 0:00:19]} Qc7 {[%emt 0:04:22]} 18. Rfc1 {[%emt 0:02:05]} Rab8 {[%emt 0:02:43]} 19. Qd3 {[%emt 0:03:58]} Ba8 {[%emt 0:02:44]} 20. Nc3 {[%emt 0:02:59]} Rfc8 {[%emt 0:03:29]} 21. b5 {[%emt 0:08:17]} axb5 {[%emt 0:03:38]} 22. Nxb5 {[%emt 0:01:04]} 1/2-1/2

[Event "Ceske Budejovice Open-A 2019"]
[Site "Ceske Budejovice"]
[Date "2019.07.05"]
[Round "7.7"]
[White "Barrish, Daniel"]
[Black "Schmid, Thomas"]
[Result "1-0"]
[ECO "E06"]
[WhiteElo "2237"]
[BlackElo "2201"]
[Annotator "NA"]
[PlyCount "59"]
[EventDate "2019.07.02"]
[EventCountry "CZE"]
[SourceTitle "playchess.com"]
[Source "ChessBase"]
[SourceQuality "1"]
[TimeControl "5400+30"]

1. d4 {[%emt 0:00:00]} Nf6 {[%emt 0:00:00]} 2. c4 {[%emt 0:00:00]} e6 {[%emt 0:00:00]} 3. Nf3 {[%emt 0:00:00]} d5 {[%emt 0:00:00]} 4. g3 {[%emt 0:00:00]} Be7 {[%emt 0:00:00]} 5. Bg2 {[%emt 0:00:02]} O-O {[%emt 0:00:05]} 6. O-O {[%emt 0:00:07]} dxc4 {[%emt 0:00:13]} 7. Ne5 {[%emt 0:00:09]} c5 {[%emt 0:00:58]} 8. dxc5 {[%emt 0:00:54]} Qc7 {[%emt 0:00:12]} 9. Nxc4 {[%emt 0:00:37]} Qxc5 {[%emt 0:00:06]} 10. Nba3 {[%emt 0:03:54]} Rd8 {[%emt 0:01:11]} 11. Bd2 {[%emt 0:06:24]} Nc6 {[%emt 0:02:00]} 12. Rc1 {[%emt 0:03:00]} Rb8 {[%emt 0:19:29]} 13. Qe1 {[%emt 0:02:53]} Qh5 {[%emt 0:02:35]} 14. Nc2 {[%emt 0:13:06]} e5 {[%emt 0:04:57]} 15. e4 {[%emt 0:09:17]} Be6 {[%emt 0:08:13]} 16. b3 {[%emt 0:02:20]} Bc5 {[%emt 0:04:14]} 17. N2e3 {[%emt 0:05:12]} Bd4 {[%emt 0:07:47]} 18. f3 {[%emt 0:02:12]} b5 {[%emt 0:07:57]} 19. Na3 {[%emt 0:09:52]} Rdc8 {[%emt 0:00:27]} 20. Nac2 {[%emt 0:00:30]} Bb6 {[%emt 0:01:20]} 21. Kh1 {[%emt 0:02:12]} Nd7 {[%emt 0:14:56]} 22. Nb4 {[%emt 0:04:26]} Nxb4 {[%emt 0:01:55]} 23. Bxb4 {[%emt 0:00:07]} Bc5 {[%emt 0:04:48]} 24. Bxc5 {[%emt 0:02:39]} Nxc5 {[%emt 0:00:41]} 25. Qb4 {[%emt 0:03:10]} Qh6 {[%emt 0:06:12]} 26. f4 {[%emt 0:08:53]} exf4 {[%emt 0:00:22]} 27. gxf4 {[%emt 0:00:07]} Nd3 {[%emt 0:00:32]} 28. Rxc8+ {[%emt 0:00:14]} Rxc8 {[%emt 0:00:22]} 29. Qd6 {[%emt 0:01:25]} Nxf4 {[%emt 0:09:42]} 30. Qxf4 {[%emt 0:00:28]} 1-0

[Event "Ceske Budejovice Open-A 2019"]
[Site "Ceske Budejovice"]
[Date "2019.07.05"]
[Round "7.8"]
[White "Vltavsky, Vladimir"]
[Black "Lys, Josef"]
[Result "1-0"]
[ECO "B12"]
[WhiteElo "2179"]
[BlackElo "2149"]
[Annotator "NA"]
[PlyCount "67"]
[EventDate "2019.07.02"]
[EventCountry "CZE"]
[SourceTitle "playchess.com"]
[Source "ChessBase"]
[SourceQuality "1"]
[TimeControl "5400+30"]

1. e4 {[%emt 0:00:09]} c6 {[%emt 0:00:00]} 2. d4 {[%emt 0:00:10]} d5 {[%emt 0:00:00]} 3. e5 {[%emt 0:00:17]} Bf5 {[%emt 0:00:00]} 4. Nf3 {[%emt 0:00:06]} e6 {[%emt 0:00:04]} 5. Be2 {[%emt 0:00:10]} Ne7 {[%emt 0:02:14]} 6. Nh4 {[%emt 0:01:03]} h6 {[%emt 0:00:46]} 7. Nxf5 {[%emt 0:00:26]} Nxf5 {[%emt 0:00:09]} 8. c3 {[%emt 0:00:47]} Nd7 {[%emt 0:00:35]} 9. Bd3 {[%emt 0:00:45]} g6 {[%emt 0:02:43]} 10. Nd2 {[%emt 0:09:14]} Bg7 {[%emt 0:01:30]} 11. Nf3 {[%emt 0:01:39]} Qe7 {[%emt 0:03:41]} 12. a4 {[%emt 0:00:26]} O-O {[%emt 0:13:51]} 13. h4 {[%emt 0:04:10]} f6 {[%emt 0:01:16]} 14. g4 {[%emt 0:04:56]} fxe5 {[%emt 0:01:26]} 15. dxe5 {[%emt 0:00:08]} Nxe5 {[%emt 0:03:30]} 16. Nxe5 {[%emt 0:00:46]} Nxh4 {[%emt 0:00:23]} 17. Nxg6 {[%emt 0:02:33]} Nxg6 {[%emt 0:04:41]} 18. Bxg6 {[%emt 0:00:13]} Qf6 {[%emt 0:08:04]} 19. Qc2 {[%emt 0:00:07]} Qf3 {[%emt 0:00:57]} 20. Rg1 {[%emt 0:00:59]} c5 {[%emt 0:03:56]} 21. Ra3 {[%emt 0:02:57]} c4 {[%emt 0:01:40]} 22. Qe2 {[%emt 0:01:53]} Qf6 {[%emt 0:07:47]} 23. Bc2 {[%emt 0:01:08]} Qh4 {[%emt 0:02:45]} 24. Be3 {[%emt 0:10:06]} Qh2 {[%emt 0:09:52]} 25. f4 {[%emt 0:05:04]} Qh3 {[%emt 0:02:21]} 26. Kd2 {[%emt 0:01:46]} e5 {[%emt 0:04:50]} 27. f5 {[%emt 0:04:28]} Rad8 {[%emt 0:04:11]} 28. Kc1 {[%emt 0:01:56]} Rd7 {[%emt 0:10:18]} 29. Bxa7 {[%emt 0:02:36]} Qh4 {[%emt 0:01:44]} 30. Bf2 {[%emt 0:04:22]} Qd8 {[%emt 0:03:10]} 31. a5 {[%emt 0:03:30]} Qc8 {[%emt 0:04:52]} 32. Ra4 {[%emt 0:00:43]} Rc7 {[%emt 0:00:21]} 33. g5 {[%emt 0:01:27]} hxg5 {[%emt 0:00:26]} 34. Rxg5 {[%emt 0:00:07]} 1-0

[Event "Ceske Budejovice Open-A 2019"]
[Site "Ceske Budejovice"]
[Date "2019.07.05"]
[Round "7.9"]
[White "Muron, Miroslav"]
[Black "Sykora, Ondrej"]
[Result "1-0"]
[ECO "C26"]
[WhiteElo "2215"]
[BlackElo "2065"]
[Annotator "NA"]
[PlyCount "103"]
[EventDate "2019.07.02"]
[EventCountry "CZE"]
[SourceTitle "playchess.com"]
[Source "ChessBase"]
[SourceQuality "1"]
[TimeControl "5400+30"]

1. e4 {[%emt 0:00:00]} Nf6 {[%emt 0:00:32]} 2. Nc3 {[%emt 0:03:28]} e5 {[%emt 0:00:09]} 3. g3 {[%emt 0:00:20]} Nc6 {[%emt 0:00:07]} 4. Bg2 {[%emt 0:00:06]} Bc5 {[%emt 0:00:21]} 5. d3 {[%emt 0:00:16]} a6 {[%emt 0:00:57]} 6. Nf3 {[%emt 0:01:37]} d6 {[%emt 0:00:07]} 7. O-O {[%emt 0:03:29]} O-O {[%emt 0:01:06]} 8. h3 {[%emt 0:00:49]} h6 {[%emt 0:00:13]} 9. Kh2 {[%emt 0:02:01]} Kh7 {[%emt 0:00:30]} 10. Nh4 {[%emt 0:02:24]} Ng8 {[%emt 0:00:08]} 11. Nd5 {[%emt 0:02:09]} Nce7 {[%emt 0:01:02]} 12. Nxe7 {[%emt 0:03:45]} Nxe7 {[%emt 0:02:00]} 13. c3 {[%emt 0:05:18]} c6 {[%emt 0:03:07]} 14. f4 {[%emt 0:03:34]} exf4 {[%emt 0:00:38]} 15. gxf4 {[%emt 0:00:48]} f5 {[%emt 0:01:23]} 16. Qe2 {[%emt 0:07:29]} d5 {[%emt 0:00:52]} 17. e5 {[%emt 0:01:29]} Be6 {[%emt 0:03:56]} 18. d4 {[%emt 0:01:04]} Ba7 {[%emt 0:00:22]} 19. Be3 {[%emt 0:01:05]} b6 {[%emt 0:00:05]} 20. Rg1 {[%emt 0:04:14]} g6 {[%emt 0:01:30]} 21. Bf3 {[%emt 0:12:55]} a5 {[%emt 0:01:00]} 22. Rg3 {[%emt 0:00:46]} Rg8 {[%emt 0:00:42]} 23. Rag1 {[%emt 0:00:10]} Bb8 {[%emt 0:07:54]} 24. Ng2 {[%emt 0:02:03]} Bc7 {[%emt 0:02:32]} 25. h4 {[%emt 0:00:05]} Qd7 {[%emt 0:00:23]} 26. h5 {[%emt 0:06:00]} gxh5 {[%emt 0:00:35]} 27. Bxh5 {[%emt 0:02:50]} Rxg3 {[%emt 0:00:21]} 28. Kxg3 {[%emt 0:00:04]} Rg8+ {[%emt 0:00:12]} 29. Kf2 {[%emt 0:01:16]} Bd8 {[%emt 0:03:07]} 30. Rh1 {[%emt 0:00:53]} Nc8 {[%emt 0:01:24]} 31. Kf1 {[%emt 0:04:34]} Qg7 {[%emt 0:04:32]} 32. Rh3 {[%emt 0:05:58]} Be7 {[%emt 0:02:50]} 33. Ne1 {[%emt 0:00:57]} Bf8 {[%emt 0:08:32]} 34. Qh2 {[%emt 0:00:13]} Qd7 {[%emt 0:08:42]} 35. Be2 {[%emt 0:00:37]} Rg6 {[%emt 0:16:05]} 36. Bf2 {[%emt 0:03:24]} Ne7 {[%emt 0:01:05]} 37. Bh4 {[%emt 0:01:48]} Ng8 {[%emt 0:08:34]} 38. Bh5 {[%emt 0:02:05]} Rg7 {[%emt 0:00:46]} 39. Bg5 {[%emt 0:04:14]} c5 {[%emt 0:03:30]} 40. Be2 {[%emt 0:01:11]} Rg6 {[%emt 0:00:41]} 41. Nf3 {[%emt 0:02:33]} Qa4 {[%emt 0:07:02]} 42. Nh4 {[%emt 0:02:03]} Rxg5 {[%emt 0:00:10]} 43. fxg5 {[%emt 0:00:08]} cxd4 {[%emt 0:00:17]} 44. Qf4 {[%emt 0:03:08]} Qxa2 {[%emt 0:01:30]} 45. cxd4 {[%emt 0:05:36]} Qb1+ {[%emt 0:03:10]} 46. Kf2 {[%emt 0:00:23]} Bb4 {[%emt 0:00:00]} 47. Ng2 {[%emt 0:00:00]} Qxb2 {[%emt 0:00:00]} 48. Rd3 {[%emt 0:00:00]} a4 {[%emt 0:00:00]} 49. Nh4 {[%emt 0:00:00]} a3 {[%emt 0:00:00]} 50. gxh6 {[%emt 0:00:00]} Nxh6 {[%emt 0:01:54]} 51. Qg5 {[%emt 0:00:00]} Bf7 {[%emt 0:01:05]} 52. Nxf5 {[%emt 0:00:00]} 1-0